[Event "FEXERJ State Masters-ch 2024"]
[Site "Rio de Janeiro"]
[Date "2024.06.01"]
[Round "4.4"]
[White "Dos Santos, Thiago L Verbicario"]
[Black "Fucs, Paulo Moses"]
[Result "1/2-1/2"]
[ECO "C55"]
[WhiteElo "1908"]
[BlackElo "1971"]
[Annotator "RC"]
[PlyCount "35"]
[EventDate "2024.05.15"]
[EventType "swiss"]
[EventCountry "BRA"]
[SourceTitle "playchess.com"]
[Source "ChessBase"]
[SourceQuality "1"]
[TimeControl "5400+30"]

1. e4 {[%emt 1:31:00]} e5 {[%emt 1:31:00]} 2. Nf3 {[%emt 0:00:00]} Nc6 {[%emt 0:00:30]} 3. Bc4 Be7 {[%emt 0:00:00]} 4. c3 {[%emt 0:00:00]} Nf6 5. d3 {[%emt 0:02:00]} d6 {[%emt 0:00:00]} 6. O-O {[%emt 0:00:00]} Bg4 7. Nbd2 {[%emt 0:01:00]} O-O {[%emt 0:00:00]} 8. Re1 a6 {[%emt 0:00:00]} 9. Bb3 Kh8 {[%emt 0:03:30]} 10. Nf1 {[%emt 0:00:00]} Qd7 11. h3 {[%emt 0:00:00]} Be6 {[%emt 0:00:00]} 12. Bc2 {[%emt 0:00:00]} Qe8 {[%emt 0:00:00]} 13. d4 Bd7 {[%emt 0:00:00]} 14. Ne3 h6 {[%emt 0:00:00]} 15. Nd5 {[%emt 0:00:00]} Bd8 {[%emt 0:00:00]} 16. b3 {[%emt 0:00:00]} Ng8 17. Ne3 {[%emt 0:05:00]} f6 {[%emt 0:04:00]} 18. Nh4 {[%emt 0:00:00]} 1/2-1/2

[Event "FEXERJ State Masters-ch 2024"]
[Site "Rio de Janeiro"]
[Date "2024.06.02"]
[Round "5.1"]
[White "Salles, Marvio Darilho"]
[Black "Rangel, Daniel"]
[Result "0-1"]
[ECO "A15"]
[WhiteElo "2072"]
[BlackElo "2161"]
[Annotator "RC"]
[PlyCount "58"]
[EventDate "2024.05.15"]
[EventType "swiss"]
[EventCountry "BRA"]
[SourceTitle "playchess.com"]
[Source "ChessBase"]
[SourceQuality "1"]
[TimeControl "5400+30"]

1. Nf3 Nf6 {[%emt 0:06:00]} 2. g3 {[%emt 0:00:47]} g6 {[%emt 0:00:11]} 3. b3 Bg7 {[%emt 1:25:49]} 4. Bb2 {[%emt 0:01:09]} O-O {[%emt 0:00:30]} 5. Bg2 {[%emt 0:00:15]} d6 {[%emt 0:00:30]} 6. O-O {[%emt 0:02:34]} e5 7. d3 {[%emt 1:29:15]} Nc6 {[%emt 0:01:00]} 8. c4 {[%emt 0:00:30]} h6 {[%emt 0:00:00]} 9. Nc3 Be6 {[%emt 0:00:00]} 10. Re1 {[%emt 0:00:00]} d5 11. cxd5 {[%emt 0:00:00]} Nxd5 {[%emt 0:00:00]} 12. Ne4 b6 {[%emt 0:00:00]} 13. Rc1 {[%emt 0:00:00]} Nd4 {[%emt 0:00:00]} 14. Nfd2 {[%emt 0:00:00]} f5 {[%emt 0:00:00]} 15. Nc3 {[%emt 0:00:00]} c5 {[%emt 0:00:00]} 16. Nxd5 Bxd5 {[%emt 0:04:30]} 17. Bxd4 {[%emt 0:00:00]} exd4 {[%emt 0:00:00]} 18. Bxd5+ {[%emt 0:05:00]} Qxd5 {[%emt 0:00:00]} 19. Qc2 Kh7 {[%emt 0:00:00]} 20. Qc4 Qd6 {[%emt 0:00:00]} 21. a4 h5 {[%emt 0:02:30]} 22. Rc2 {[%emt 0:00:00]} Bh6 23. Nf3 {[%emt 0:02:30]} a5 24. Qb5 f4 25. Nd2 fxg3 26. hxg3 Bxd2 27. Rxd2 Rae8 28. Kg2 h4 29. Rh1 Rxf2+ 0-1

[Event "FEXERJ State Masters-ch 2024"]
[Site "Rio de Janeiro"]
[Date "2024.06.02"]
[Round "5.3"]
[White "Okamura, Milton Kasuo"]
[Black "Pereira, Arthur Macedo"]
[Result "1/2-1/2"]
[ECO "E48"]
[WhiteElo "1986"]
[BlackElo "1899"]
[Annotator "NA RC"]
[PlyCount "111"]
[EventDate "2024.05.15"]
[EventType "swiss"]
[EventCountry "BRA"]
[SourceTitle "playchess.com"]
[Source "ChessBase"]
[SourceQuality "1"]
[TimeControl "5400+30"]

1. d4 {[%emt 0:00:03]} Nf6 {[%emt 1:31:00]} 2. c4 e6 {[%emt 0:00:00]} 3. Nc3 {[%emt 0:00:13]} Bb4 {[%emt 0:01:00]} 4. e3 {[%emt 1:32:14]} O-O {[%emt 0:00:30]} 5. Bd3 {[%emt 0:00:30]} d5 {[%emt 0:00:00]} 6. Nge2 {[%emt 0:00:00]} dxc4 {[%emt 0:00:00]} 7. Bxc4 {[%emt 0:00:00]} Re8 8. a3 {[%emt 0:01:30]} Bf8 {[%emt 0:02:00]} 9. e4 {[%emt 0:00:00]} e5 {[%emt 0:00:00]} 10. d5 h6 {[%emt 0:01:00]} 11. Ng3 {[%emt 0:00:00]} Nbd7 12. O-O {[%emt 0:02:00]} g6 {[%emt 0:01:00]} 13. Ba2 {[%emt 0:00:30]} Nb6 {[%emt 0:00:30]} 14. Kh1 {[%emt 0:00:30]} Bg7 {[%emt 0:00:30]} 15. f3 {[%emt 0:00:30]} Bd7 {[%emt 0:00:30]} 16. Be3 {[%emt 0:00:30]} Nc8 {[%emt 0:00:30]} 17. Qd2 {[%emt 0:00:30]} Kh7 {[%emt 0:00:30]} 18. Rac1 {[%emt 0:00:30]} Nd6 {[%emt 0:00:00]} 19. Rfd1 {[%emt 0:00:30]} b6 {[%emt 0:01:00]} 20. a4 {[%emt 0:00:30]} a5 {[%emt 0:00:30]} 21. Qe2 {[%emt 0:00:30]} Re7 {[%emt 0:00:30]} 22. Nf1 {[%emt 0:00:00]} Qe8 {[%emt 0:00:00]} 23. Bb3 Nh5 {[%emt 0:01:00]} 24. g3 {[%emt 0:01:30]} f5 {[%emt 0:00:00]} 25. Bf2 Nf6 {[%emt 0:00:00]} 26. Qc2 {[%emt 0:00:00]} fxe4 27. Nxe4 {[%emt 0:01:30]} Nfxe4 {[%emt 0:02:00]} 28. fxe4 {[%emt 0:00:00]} Bg4 {[%emt 0:00:00]} 29. Re1 Qf8 {[%emt 0:00:00]} 30. Kg1 Nf7 {[%emt 0:00:00]} 31. Be3 Nd6 {[%emt 0:00:00]} 32. Nd2 Bh3 {[%emt 0:02:30]} 33. Qd3 {[%emt 0:00:00]} Rf7 {[%emt 0:00:00]} 34. Bd1 Qe7 {[%emt 0:01:00]} 35. Be2 {[%emt 0:00:00]} Qd7 {[%emt 0:00:00]} 36. Rc6 {[%emt 0:00:00]} Bg4 37. Rec1 {[%emt 0:05:00]} Bxe2 {[%emt 0:00:00]} 38. Qxe2 {[%emt 0:00:00]} Raf8 {[%emt 0:02:00]} 39. Qd3 {[%emt 0:00:00]} Ne8 40. Kg2 {[%emt 0:00:00]} Rf6 {[%emt 0:00:00]} 41. b3 {[%emt 0:00:00]} R8f7 42. h3 {[%emt 0:00:00]} Rf8 43. Qc3 {[%emt 0:00:00]} R6f7 {[%emt 0:01:24]} 44. b4 {[%emt 0:00:00]} axb4 45. Qxb4 {[%emt 0:00:00]} Rf6 {[%emt 0:01:09]} 46. a5 bxa5 {[%emt 0:00:43]} 47. Qxa5 R6f7 {[%emt 0:01:14]} 48. Bc5 {[%emt 0:00:00]} Rg8 {[%emt 0:00:30]} 49. Nc4 {[%emt 0:06:00]} h5 {[%emt 0:00:00]} 50. Be3 {[%emt 0:00:00]} Rgf8 {[%emt 0:00:12]} 51. Nd2 {[%emt 0:00:00]} Bh6 {[%emt 0:00:41]} 52. Bc5 {[%emt 0:00:00]} Bxd2 53. Qxd2 Nd6 {[%emt 0:00:58]} 54. Qe2 Qd8 {[%emt 0:01:09]} 55. h4 {[%emt 0:03:00]} Qf6 {[%emt 0:00:30]} 56. Bg1 {[%emt 0:00:30]} 1/2-1/2

[Event "FEXERJ State Masters-ch 2024"]
[Site "Rio de Janeiro"]
[Date "2024.06.02"]
[Round "5.4"]
[White "Fernandes, Silas Carvalho"]
[Black "Dias, Matheus Braga"]
[Result "1/2-1/2"]
[ECO "B86"]
[WhiteElo "2043"]
[BlackElo "1961"]
[Annotator "NA"]
[PlyCount "29"]
[EventDate "2024.05.15"]
[EventType "swiss"]
[EventCountry "BRA"]
[SourceTitle "playchess.com"]
[Source "ChessBase"]
[SourceQuality "1"]
[TimeControl "5400+30"]

1. e4 {[%emt 1:31:00]} c5 {[%emt 0:01:20]} 2. Nf3 {[%emt 0:00:00]} d6 3. Nc3 {[%emt 0:01:00]} Nf6 {[%emt 0:00:20]} 4. Bc4 {[%emt 0:00:00]} e6 {[%emt 0:00:09]} 5. d4 {[%emt 0:00:00]} cxd4 {[%emt 0:00:06]} 6. Nxd4 a6 {[%emt 1:31:35]} 7. a4 {[%emt 0:02:00]} Be7 {[%emt 0:00:00]} 8. O-O {[%emt 0:00:30]} Qc7 {[%emt 0:00:00]} 9. Qe2 O-O {[%emt 0:00:00]} 10. Be3 Nbd7 {[%emt 0:02:00]} 11. f3 {[%emt 0:01:30]} Re8 {[%emt 0:00:30]} 12. Ba2 {[%emt 0:00:30]} b6 {[%emt 0:00:00]} 13. Kh1 Bb7 {[%emt 0:00:00]} 14. Qf2 Rac8 {[%emt 0:01:30]} 15. Rfd1 {[%emt 0:00:00]} 1/2-1/2

[Event "FEXERJ State Masters-ch 2024"]
[Site "Rio de Janeiro"]
[Date "2024.06.02"]
[Round "6.1"]
[White "Rangel, Daniel"]
[Black "Okamura, Milton Kasuo"]
[Result "1/2-1/2"]
[ECO "C50"]
[WhiteElo "2161"]
[BlackElo "1986"]
[Annotator "RC"]
[PlyCount "55"]
[EventDate "2024.05.15"]
[EventType "swiss"]
[EventCountry "BRA"]
[SourceTitle "playchess.com"]
[Source "ChessBase"]
[SourceQuality "1"]
[TimeControl "5400+30"]

1. e4 {[%emt 0:00:16]} e5 {[%emt 0:03:42]} 2. Bc4 {[%emt 0:00:19]} Nf6 {[%emt 0:02:18]} 3. d3 {[%emt 0:00:23]} Nc6 {[%emt 0:00:56]} 4. Nf3 {[%emt 0:00:39]} Bc5 {[%emt 0:00:21]} 5. Nc3 {[%emt 0:02:27]} h6 {[%emt 0:00:31]} 6. a3 a6 {[%emt 0:01:47]} 7. h3 d6 {[%emt 1:24:25]} 8. O-O {[%emt 0:12:08]} O-O {[%emt 0:00:30]} 9. b4 {[%emt 0:04:57]} Ba7 10. Be3 {[%emt 1:14:21]} Bxe3 {[%emt 0:00:00]} 11. fxe3 {[%emt 0:00:00]} Be6 {[%emt 0:01:30]} 12. Nd5 {[%emt 0:00:00]} Bxd5 13. exd5 {[%emt 0:01:30]} Ne7 {[%emt 0:00:00]} 14. e4 {[%emt 0:00:00]} Ng6 15. Kh2 {[%emt 0:00:00]} Qe7 {[%emt 0:00:00]} 16. Ng1 {[%emt 0:00:00]} h5 17. g3 {[%emt 0:00:00]} h4 18. g4 {[%emt 0:00:00]} Nf4 {[%emt 0:00:00]} 19. Nf3 {[%emt 0:00:00]} Nh7 20. Qe1 {[%emt 0:00:00]} g5 {[%emt 0:00:00]} 21. Qe3 b6 {[%emt 0:05:00]} 22. Bb3 {[%emt 0:00:00]} Rfb8 23. Nd2 {[%emt 0:00:00]} Qd7 {[%emt 0:00:00]} 24. Nc4 {[%emt 0:00:00]} Nf8 25. Qd2 {[%emt 0:06:00]} N8g6 {[%emt 0:00:00]} 26. Ne3 {[%emt 0:00:00]} f6 27. Nf5 {[%emt 0:01:00]} a5 {[%emt 0:03:00]} 28. b5 {[%emt 0:00:30]} 1/2-1/2

[Event "FEXERJ State Masters-ch 2024"]
[Site "Rio de Janeiro"]
[Date "2024.06.02"]
[Round "6.3"]
[White "Pereira, Arthur Macedo"]
[Black "Fucs, Paulo Moses"]
[Result "1-0"]
[ECO "D90"]
[WhiteElo "1899"]
[BlackElo "1971"]
[Annotator "RC"]
[PlyCount "35"]
[EventDate "2024.05.15"]
[EventType "swiss"]
[EventCountry "BRA"]
[SourceTitle "playchess.com"]
[Source "ChessBase"]
[SourceQuality "1"]
[TimeControl "5400+30"]

1. d4 {[%emt 0:00:00]} d5 {[%emt 0:00:06]} 2. c4 c6 {[%emt 0:00:28]} 3. Nc3 {[%emt 0:00:23]} a6 4. cxd5 {[%emt 1:32:07]} cxd5 {[%emt 1:31:56]} 5. Nf3 {[%emt 0:00:00]} Nc6 {[%emt 0:00:30]} 6. Bf4 {[%emt 0:01:00]} Nf6 {[%emt 0:00:30]} 7. e3 {[%emt 0:00:30]} g6 {[%emt 0:00:00]} 8. Be2 {[%emt 0:00:00]} Bg7 {[%emt 0:00:00]} 9. h3 O-O {[%emt 0:01:30]} 10. O-O {[%emt 0:00:00]} Qb6 11. Na4 {[%emt 0:02:00]} Qa5 {[%emt 0:01:00]} 12. a3 {[%emt 0:00:30]} e6 {[%emt 0:00:00]} 13. b4 Qd8 {[%emt 0:01:00]} 14. Rc1 {[%emt 0:00:00]} Re8 15. Nc5 {[%emt 0:00:00]} Ne7 16. Nxa6 {[%emt 0:00:00]} bxa6 17. Bc7 {[%emt 0:02:30]} Qd7 {[%emt 0:00:00]} 18. Ne5 {[%emt 0:00:00]} 1-0

[Event "FEXERJ State Masters-ch 2024"]
[Site "Rio de Janeiro"]
[Date "2024.06.02"]
[Round "6.4"]
[White "Barros, Angelo Costa"]
[Black "Salles, Marvio Darilho"]
[Result "0-1"]
[ECO "B28"]
[WhiteElo "1824"]
[BlackElo "2072"]
[Annotator "RC"]
[PlyCount "76"]
[EventDate "2024.05.15"]
[EventType "swiss"]
[EventCountry "BRA"]
[SourceTitle "playchess.com"]
[Source "ChessBase"]
[SourceQuality "1"]
[TimeControl "5400+30"]

1. e4 {[%emt 1:31:00]} c5 {[%emt 0:00:46]} 2. Nf3 {[%emt 0:00:00]} a6 {[%emt 0:00:03]} 3. c3 d5 {[%emt 1:31:11]} 4. exd5 {[%emt 0:00:00]} Qxd5 {[%emt 0:00:30]} 5. d4 {[%emt 0:02:00]} e6 {[%emt 0:00:00]} 6. Be3 {[%emt 0:00:00]} Nd7 {[%emt 0:00:00]} 7. Nbd2 {[%emt 0:00:00]} cxd4 {[%emt 0:00:00]} 8. Bc4 Qa5 {[%emt 0:00:00]} 9. Bxd4 Ngf6 {[%emt 0:00:00]} 10. O-O Be7 {[%emt 0:03:00]} 11. a4 {[%emt 0:03:00]} Qc7 {[%emt 0:00:30]} 12. Re1 {[%emt 0:00:30]} O-O {[%emt 0:00:30]} 13. a5 {[%emt 0:00:30]} Bc5 {[%emt 0:00:00]} 14. Qe2 {[%emt 0:00:00]} Re8 {[%emt 0:00:00]} 15. b4 {[%emt 0:00:00]} Bxd4 {[%emt 0:00:00]} 16. cxd4 Nf8 {[%emt 0:02:00]} 17. Rec1 {[%emt 0:02:00]} Qd6 {[%emt 0:00:30]} 18. Bd3 {[%emt 0:00:00]} Qxb4 {[%emt 0:00:00]} 19. Rc5 b6 {[%emt 0:00:00]} 20. Rb1 bxc5 {[%emt 0:01:30]} 21. Rxb4 {[%emt 0:00:00]} cxb4 {[%emt 0:00:30]} 22. Nc4 {[%emt 0:02:30]} Nd5 {[%emt 0:00:00]} 23. Be4 {[%emt 0:00:00]} Rd8 {[%emt 0:00:00]} 24. Bxd5 {[%emt 0:00:00]} exd5 {[%emt 0:00:00]} 25. Nb6 Rb8 {[%emt 0:02:00]} 26. Ne5 {[%emt 0:02:00]} Re8 {[%emt 0:00:00]} 27. Qd2 {[%emt 0:00:00]} b3 {[%emt 0:00:00]} 28. f3 {[%emt 0:00:00]} Bf5 29. Qb2 {[%emt 0:01:30]} Bc2 {[%emt 0:00:00]} 30. Nc6 {[%emt 0:00:00]} Re1+ 31. Kf2 {[%emt 0:00:00]} Rbe8 32. Nxd5 {[%emt 0:01:30]} R8e2+ {[%emt 0:00:00]} 33. Kg3 Rg1 {[%emt 0:00:00]} 34. Nf4 Rd2 {[%emt 0:00:00]} 35. d5 {[%emt 0:00:00]} Ng6 {[%emt 0:00:00]} 36. Qa3 Nxf4 {[%emt 0:00:00]} 37. Kxf4 Rgxg2 {[%emt 0:00:00]} 38. Ne5 {[%emt 0:00:00]} g5+ {[%emt 0:00:00]} 0-1